bitfinex/quotes_SOLUSD_20250928
["timestamp","ask_amount","ask_price","bid_price","bid_amount"]
[1759066646240,0.65000001,200.58,200.57,13.59559401]
[1759066646565,0.65000001,200.58,200.57,52.31559401]
[1759066646764,0.65000001,200.58,200.57,57.3013845]
[1759066647840,0.65000001,200.58,200.57,13.59559401]
[1759066648040,0.65000001,200.58,200.57,52.31559401]
[1759066648236,0.65000001,200.58,200.57,13.59559401]
[1759066648457,0.65000001,200.58,200.57,52.31559401]
[1759066648652,0.65000001,200.58,200.57,13.59559401]
[1759066648845,0.65000001,200.58,200.54,26.0]
[1759066649052,0.65,200.57,200.55,52.31559401]
[1759066649253,0.65,200.56,200.55,52.31559401]
[1759066649447,1e-08,200.58,200.55,13.59559401]
[1759066649647,1e-08,200.58,200.57,13.59559401]
[1759066649853,1e-08,200.58,200.57,18.5813845]
[1759066650054,1e-08,200.58,200.57,57.3013845]
[1759066650459,1e-08,200.58,200.57,18.5813845]
[1759066650644,1e-08,200.58,200.57,19.2513845]
[1759066651268,1e-08,200.58,200.57,57.9713845]
[1759066652050,1e-08,200.58,200.57,19.2513845]
[1759066652550,1e-08,200.58,200.57,57.9713845]
[1759066653245,1e-08,200.58,200.57,19.2513845]
[1759066653447,1e-08,200.58,200.57,18.5813845]
[1759066653642,1e-08,200.58,200.57,57.3013845]
[1759066654647,1e-08,200.58,200.57,57.9713845]
[1759066654852,1e-08,200.58,200.57,19.2513845]
[1759066655555,1e-08,200.58,200.57,57.9713845]
[1759066656271,1e-08,200.58,200.57,19.2513845]
[1759066656873,1e-08,200.58,200.57,57.9713845]
[1759066658957,1e-08,200.58,200.57,18.5813845]
[1759066659161,0.65000001,200.58,200.57,13.59559401]
[1759066659361,1e-08,200.58,200.57,14.26559401]
[1759066659568,1e-08,200.58,200.57,52.98559401]
[1759066660271,1e-08,200.58,200.57,13.59559401]
[1759066660476,1e-08,200.58,200.57,52.31559401]
[1759066660979,1e-08,200.58,200.57,57.3013845]
[1759066665263,1e-08,200.58,200.57,18.5813845]
[1759066665776,1e-08,200.58,200.57,57.3013845]
[1759066666372,1e-08,200.58,200.57,13.59559401]
[1759066666678,0.65000001,200.58,200.54,13.59559401]
[1759066666879,0.65,200.57,200.54,13.59559401]
[1759066667065,0.65,200.57,200.53,4.98678501]
[1759066667066,0.65,200.56,200.53,13.59559401]
[1759066667274,0.65,200.55,200.54,52.31559401]
[1759066667863,0.65,200.55,200.5,4.98746545]
[1759066668164,0.65,200.54,200.51,52.31559401]
[1759066668361,0.65,200.53,200.49,13.59559401]
[1759066668569,0.65,200.52,200.5,38.72]
[1759066668882,0.65,200.54,200.51,52.31559401]
[1759066669184,0.65,200.53,200.52,38.72]
[1759066669768,0.65,200.55,200.51,13.59559401]
[1759066669968,0.65,200.54,200.51,13.59559401]
[1759066670174,1e-08,200.58,200.52,38.72]
[1759066670487,0.66,200.57,200.52,38.72]
[1759066670785,0.66,200.56,200.52,38.72]
[1759066670985,0.66,200.55,200.52,38.72]
[1759066671186,0.66,200.54,200.52,38.72]
[1759066671564,0.66,200.54,200.49,5.65771419]
[1759066671764,0.66,200.54,200.51,13.59559401]
[1759066671989,0.66,200.54,200.52,38.72]
[1759066672285,0.66,200.54,200.49,5.65771419]
[1759066672490,0.66,200.54,200.51,13.59559401]
[1759066672676,0.66,200.54,200.52,38.72]
[1759066673388,0.66,200.54,200.51,13.59559401]
[1759066673563,0.66,200.54,200.52,38.72]
[1759066675690,1e-08,200.58,200.52,38.72]
[1759066675886,1e-08,200.58,200.48,13.59559401]
[1759066675887,116.3757905,200.57,200.48,13.59559401]
[1759066676100,0.66,200.56,200.48,13.59559401]
[1759066676392,0.66,200.55,200.49,13.59559401]
[1759066676572,0.66,200.54,200.49,13.59559401]
[1759066676772,0.66,200.53,200.49,13.59559401]
[1759066676988,0.66,200.52,200.48,52.31559401]
[1759066677172,0.66,200.51,200.48,52.31559401]
[1759066677690,0.66,200.5,200.48,38.72]
[1759066677921,84.73000001,200.56,200.48,0.66]
[1759066678092,0.66,200.53,200.49,13.59559401]
[1759066678301,0.66,200.53,200.49,52.97559401]
[1759066678603,0.66,200.52,200.49,52.97559401]
[1759066678971,0.66,200.54,200.49,52.97559401]
[1759066679172,0.66,200.53,200.49,52.97559401]
[1759066679399,0.66,200.53,200.5,38.72]
[1759066679699,0.66,200.53,200.5,39.38]
[1759066679998,0.66,200.55,200.5,38.72]
[1759066680200,1e-08,200.58,200.49,18.5832786]
[1759066680201,1e-08,200.58,200.52,13.59559401]
[1759066680581,1e-08,200.58,200.54,13.59559401]
[1759066681104,1e-08,200.58,200.56,13.59559401]
[1759066681280,1e-08,200.58,200.57,38.72]
[1759066681478,1e-08,200.58,200.57,52.31559401]
[1759066681697,1e-08,200.58,200.57,13.59559401]
[1759066681905,1e-08,200.58,200.57,52.31559401]
[1759066682375,1e-08,200.58,200.57,13.59559401]
[1759066682577,1e-08,200.58,200.57,52.97559401]
[1759066682776,1e-08,200.58,200.57,14.25559401]
[1759066683087,1e-08,200.58,200.57,52.97559401]
[1759066683971,1e-08,200.58,200.57,19.2413845]
[1759066684377,1e-08,200.58,200.57,57.9613845]
[1759066684777,1e-08,200.58,200.57,19.2413845]
[1759066685307,1e-08,200.58,200.57,57.9613845]
[1759066687184,1e-08,200.58,200.57,72.95875996]
[1759066687801,1e-08,200.58,200.57,34.23875996]
[1759066688112,1e-08,200.58,200.57,72.95875996]
[1759066688896,1e-08,200.58,200.57,34.23875996]
[1759066689408,1e-08,200.58,200.57,72.95875996]
[1759066689780,1e-08,200.58,200.57,34.23875996]
[1759066690007,1e-08,200.58,200.57,33.57875996]
[1759066690207,1e-08,200.58,200.57,34.23875996]
[1759066690584,1e-08,200.58,200.57,72.95875996]
[1759066690985,1e-08,200.58,200.57,34.23875996]
[1759066691293,1e-08,200.58,200.57,72.95875996]
[1759066691491,1e-08,200.58,200.57,34.23875996]
[1759066691802,1e-08,200.58,200.57,72.95875996]
[1759066692315,1e-08,200.58,200.57,34.23875996]
[1759066692603,1e-08,200.58,200.57,72.95875996]
[1759066692816,1e-08,200.58,200.57,34.23875996]
[1759066692988,1e-08,200.58,200.57,72.95875996]
[1759066693699,1e-08,200.58,200.57,34.23875996]
[1759066693897,1e-08,200.58,200.57,72.93875996]
[1759066694093,1e-08,200.58,200.57,34.23875996]
[1759066694416,1e-08,200.58,200.57,72.93875996]
[1759066694787,1e-08,200.58,200.57,34.23875996]
[1759066695000,1e-08,200.58,200.57,72.93875996]
[1759066695200,1e-08,200.58,200.57,34.23875996]
[1759066695396,1e-08,200.58,200.57,72.93875996]
[1759066695594,1e-08,200.58,200.57,34.23875996]
[1759066696106,1e-08,200.58,200.57,72.93875996]
[1759066697622,1e-08,200.58,200.57,34.23875996]
[1759066697921,1e-08,200.58,200.57,72.93875996]
[1759066698798,1e-08,200.58,200.57,34.23875996]
[1759066699392,1e-08,200.58,200.57,72.93875996]
[1759066700457,1e-08,200.58,200.57,34.23875996]
[1759066700917,1e-08,200.58,200.57,72.93875996]
[1759066701620,1e-08,200.58,200.57,34.23875996]
[1759066701810,1e-08,200.58,200.57,72.93875996]
[1759066703115,1e-08,200.58,200.57,34.23875996]
[1759066703591,1e-08,200.58,200.57,72.93875996]
[1759066706911,1e-08,200.58,200.57,34.23875996]
[1759066707307,1e-08,200.58,200.57,72.93875996]
[1759066711817,0.71000001,200.58,200.57,33.57875996]
[1759066712218,0.71000001,200.58,200.57,72.27875996]
[1759066712810,0.71000001,200.58,200.57,98.27875996]
[1759066713015,0.71000001,200.58,200.57,59.57875996]
[1759066713228,0.71000001,200.58,200.57,98.27875996]
[1759066713521,1e-08,200.58,200.57,98.27875996]
[1759066713725,1e-08,200.58,200.57,98.98875996]
[1759066714025,1e-08,200.58,200.57,98.27875996]
[1759066714334,1e-08,200.58,200.57,98.25875996]
[1759066714702,0.71000001,200.58,200.57,59.57875996]
[1759066715107,0.71000001,200.58,200.57,98.25875996]
[1759066717004,1e-08,200.58,200.57,98.25875996]
[1759066717529,1e-08,200.58,200.57,59.57875996]
[1759066717735,1e-08,200.58,200.57,98.25875996]
[1759066719633,1e-08,200.58,200.57,59.57875996]
[1759066720015,1e-08,200.58,200.57,98.25875996]
[1759066720738,1e-08,200.58,200.57,59.57875996]
[1759066720930,1e-08,200.58,200.57,98.25875996]
[1759066721735,0.71000001,200.58,200.57,59.57875996]
[1759066721933,0.71000001,200.58,200.57,98.25875996]
[1759066722321,0.71000001,200.58,200.57,59.57875996]
[1759066722723,0.71000001,200.58,200.57,98.25875996]
[1759066723122,0.71000001,200.58,200.57,59.57875996]
[1759066723318,0.71000001,200.58,200.57,98.25875996]
[1759066724821,0.71000001,200.58,200.57,59.57875996]
[1759066725024,0.71000001,200.58,200.57,98.25875996]
[1759066725433,0.71000001,200.58,200.57,59.57875996]
[1759066725741,1e-08,200.58,200.57,98.96875996]
[1759066726415,1e-08,200.58,200.57,60.28875996]
[1759066726617,1e-08,200.58,200.57,98.96875996]
[1759066727739,214.88177509,200.74,200.57,98.96875996]
[1759066727740,0.2,200.76,200.61,13.59559401]
[1759066727953,0.71,200.75,200.66,39.59559401]
[1759066728144,0.71,200.74,200.66,26.0]
[1759066728443,0.71,200.73,200.68,13.59559401]
[1759066728627,0.71,200.72,200.7,13.59559401]
[1759066728826,0.71,200.71,200.7,52.49559401]
[1759066729024,0.71,200.71,200.7,13.59559401]
[1759066729623,0.71,200.71,200.68,38.9]
[1759066729948,0.71,200.7,200.67,52.49559401]
[1759066730127,0.71,200.69,200.67,52.49559401]
[1759066730327,0.71,200.68,200.67,13.59559401]
[1759066730528,0.71,200.68,200.67,52.49559401]
[1759066730938,0.71,200.68,200.66,52.49559401]
[1759066731125,0.71,200.67,200.66,57.47914421]
[1759066731321,0.71,200.67,200.66,52.49559401]
[1759066731833,0.71,200.67,200.66,55.85806217]
[1759066732236,0.71,200.67,200.66,55.83806217]
[1759066733025,0.71,200.67,200.66,60.82161644]
[1759066733925,3.36246816,200.75,200.66,60.82161644]
[1759066734136,0.71,200.69,200.66,60.82161644]
[1759066734348,0.71,200.68,200.66,60.82161644]
[1759066734651,0.71,200.68,200.67,52.45559401]
[1759066736641,0.71,200.7,200.68,13.59559401]
[1759066736829,0.71,200.69,200.68,13.59559401]
[1759066737156,0.71,200.69,200.68,52.47559401]
[1759066737341,0.71,200.69,200.68,13.59559401]
[1759066739041,0.71,200.69,200.67,38.88]
[1759066739241,0.71,200.68,200.67,52.47559401]
[1759066739961,0.71,200.68,200.6,0.72]
[1759066740156,0.71,200.68,200.61,52.45559401]
[1759066740341,0.71,200.67,200.64,26.0]
[1759066740539,0.71,200.66,200.64,38.86]
[1759066740739,0.71,200.65,200.64,52.45559401]
[1759066740940,0.71,200.65,200.64,52.47559401]
[1759066741358,0.71,200.65,200.56,12.46455956]
[1759066741670,0.71,200.64,200.59,14.99737546]
[1759066741837,0.71,200.63,200.6,52.47559401]
[1759066742039,0.71,200.62,200.6,13.59559401]
[1759066742439,0.71,200.61,200.59,38.88]
[1759066742661,0.71,200.6,200.59,13.59559401]
[1759066742856,0.71,200.61,200.59,52.47559401]
[1759066743245,0.71,200.6,200.59,52.47559401]
[1759066743951,26.0,200.65,200.59,13.59559401]
[1759066744155,0.71,200.6,200.59,13.59559401]
[1759066745040,0.71,200.62,200.59,13.59559401]
[1759066745241,0.71,200.61,200.59,13.59559401]
[1759066746973,0.71,200.6,200.57,13.59559401]
[1759066747264,0.71,200.59,200.51,38.88]
[1759066747470,0.71,200.58,200.51,38.88]
[1759066747676,0.71,200.57,200.51,38.88]
[1759066747876,0.71,200.56,200.51,38.88]
[1759066748241,0.71,200.55,200.5,38.9]
[1759066748472,0.71,200.54,200.5,38.9]
[1759066748747,0.71,200.53,200.5,38.9]
[1759066750558,26.0,200.57,200.5,38.9]
[1759066750765,0.67,200.52,200.49,13.59559401]
[1759066751167,26.0,200.56,200.49,13.59559401]
[1759066751374,0.67,200.55,200.49,13.59559401]
[1759066751672,0.67,200.54,200.49,13.59559401]
[1759066751968,0.67,200.53,200.49,14.31559401]
[1759066753544,26.0,200.56,200.49,14.31559401]
[1759066753749,0.67,200.55,200.49,14.31559401]
[1759066753970,0.67,200.54,200.49,14.31559401]
[1759066755868,0.67,200.55,200.5,0.72]
[1759066756055,0.67,200.54,200.49,13.59559401]
[1759066756266,26.67,200.56,200.5,0.72]
[1759066758073,0.67,200.56,200.5,0.72]
[1759066758276,111.40000001,200.56,200.5,0.72]
[1759066760160,111.40000001,200.56,200.49,13.59559401]
[1759066760363,0.67,200.55,200.46,13.59559401]
[1759066760550,85.45000001,200.54,200.45,0.71]
[1759066760765,124.29000001,200.54,200.45,0.71]
[1759066760984,85.45000001,200.54,200.45,0.71]
[1759066761365,124.29000001,200.54,200.45,0.71]
[1759066762278,124.27000001,200.54,200.45,0.71]
[1759066762684,124.27000001,200.54,200.45,5.69872184]
[1759066762987,0.72,200.53,200.46,0.71]
[1759066763863,0.72,200.53,200.46,14.30559401]
[1759066764061,0.72,200.52,200.46,14.30559401]
[1759066764780,0.72,200.52,200.46,13.59559401]
[1759066764980,0.72,200.52,200.47,0.71]
[1759066765472,0.72,200.51,200.47,0.71]
[1759066766085,84.73000001,200.54,200.46,13.59559401]
[1759066766268,0.72,200.58,200.52,13.59559401]
[1759066766468,0.72,200.58,200.53,0.71]
[1759066766685,0.72,200.58,200.54,0.71]
[1759066766886,84.73000001,200.59,200.55,0.71]
[1759066767397,84.73000001,200.59,200.52,52.45559401]
[1759066767398,0.72,200.6,200.57,13.59559401]
[1759066770696,0.72,200.63,200.58,0.71]
[1759066770989,0.72,200.64,200.59,0.71]
[1759066771191,0.72,200.64,200.6,0.71]
[1759066771391,24.98228505,200.72,200.58,13.59559401]
[1759066771693,24.98228505,200.72,200.54,17.45287722]
[1759066771694,0.72,200.66,200.61,0.71]
[1759066771874,0.72,200.65,200.61,0.71]
[1759066772189,0.72,200.65,200.55,13.59559401]
[1759066772190,0.72,200.67,200.62,0.71]
[1759066772382,26.0,200.7,200.63,0.71]
[1759066772587,0.72,200.69,200.63,0.71]
[1759066772784,0.72,200.69,200.64,13.59559401]
[1759066772982,38.86,200.72,200.64,14.30559401]
[1759066773187,0.72,200.71,200.64,14.30559401]
[1759066773386,64.86,200.72,200.64,14.30559401]
[1759066773588,0.72,200.7,200.64,14.30559401]
[1759066773882,0.72,200.69,200.64,14.30559401]
[1759066774080,0.72,200.68,200.64,14.30559401]
[1759066774285,0.72,200.71,200.65,0.71]
[1759066774467,0.72,200.72,200.66,13.59559401]
[1759066774674,0.72,200.72,200.68,13.59559401]
[1759066775295,0.72,200.72,200.68,0.71]
[1759066775673,38.86,200.74,200.68,0.71]
[1759066775883,0.72,200.74,200.68,0.71]
[1759066776887,0.72,200.74,200.65,4.98378546]
[1759066777085,0.72,200.73,200.66,0.71]
[1759066777292,0.72,200.73,200.67,13.59559401]
[1759066777489,0.72,200.72,200.67,13.59559401]
[1759066777791,0.72,200.72,200.66,13.59559401]
[1759066777990,0.72,200.72,200.66,0.71]
[1759066780299,0.72,200.72,200.67,13.59559401]
[1759066780478,0.72,200.72,200.67,14.30559401]
[1759066781498,0.72,200.72,200.68,0.71]
[1759066784207,0.72,200.72,200.66,13.59559401]
[1759066784393,0.72,200.73,200.68,0.71]
[1759066784791,0.72,200.73,200.66,18.57907825]
[1759066784994,84.73000001,200.74,200.69,0.71]
[1759066785484,84.73000001,200.74,200.7,0.71]
[1759066786277,84.73000001,200.74,200.71,0.71]
[1759066786779,0.72,200.73,200.64,0.71]
[1759066786987,38.8,200.72,200.64,0.71]
[1759066787199,0.72,200.71,200.65,13.59559401]
[1759066787404,0.72,200.7,200.65,13.59559401]
[1759066787588,0.72,200.69,200.65,14.30559401]
[1759066792087,0.72,200.69,200.58,14.99512659]
[1759066792088,0.71,200.68,200.62,13.59559401]
[1759066792284,0.71,200.68,200.63,0.68]
[1759066792489,0.71,200.7,200.64,13.59559401]
[1759066792699,0.71,200.7,200.65,0.68]
[1759066792897,84.73000001,200.71,200.66,0.68]
[1759066793183,84.73000001,200.71,200.6,13.59559401]
[1759066793396,84.73000001,200.71,200.63,13.59559401]
[1759066793397,0.71,200.7,200.63,13.59559401]
[1759066793808,0.71,200.7,200.64,0.68]
[1759066795397,0.71,200.7,200.65,13.59559401]
[1759066795591,0.71,200.7,200.66,0.68]
[1759066796094,84.73000001,200.71,200.67,0.68]
[1759066796298,84.73000001,200.71,200.61,13.59559401]
[1759066796611,84.73000001,200.71,200.65,0.68]
[1759066796816,123.49000001,200.71,200.65,0.68]
[1759066797108,123.49000001,200.71,200.61,13.59559401]
[1759066797109,84.73000001,200.71,200.61,13.59559401]
[1759066797289,128.47239281,200.71,200.64,13.59559401]
[1759066797489,26.0,200.68,200.61,0.68]
[1759066798088,0.71,200.67,200.61,0.68]
[1759066800008,85.44000001,200.67,200.61,0.68]
[1759066800403,85.44000001,200.67,200.58,13.59559401]
[1759066800713,124.22000001,200.66,200.58,0.68]
[1759066800899,85.44000001,200.66,200.58,0.68]
[1759066801107,38.78,200.65,200.58,0.68]
[1759066801491,85.44000001,200.64,200.58,0.68]
[1759066801688,84.73000001,200.63,200.56,14.27559401]
[1759066801990,85.44000001,200.63,200.56,14.27559401]
[1759066802410,85.44000001,200.63,200.54,13.59559401]
[1759066802609,85.44000001,200.63,200.56,13.59559401]
[1759066802795,85.44000001,200.63,200.56,14.27559401]
[1759066803606,85.44000001,200.63,200.57,0.68]
[1759066803904,84.73000001,200.63,200.57,0.68]
[1759066804108,0.71,200.62,200.57,0.68]
[1759066804492,0.71,200.62,200.58,0.68]
[1759066805423,0.71,200.62,200.56,0.68]
[1759066805810,0.71,200.62,200.54,0.68]
[1759066808121,10.71,200.62,200.54,0.68]
[1759066809500,10.71,200.62,200.55,13.59559401]
[1759066809822,10.71,200.62,200.57,13.59559401]
[1759066809998,0.71,200.61,200.57,13.59559401]
[1759066810701,0.68,200.6,200.56,0.68]
[1759066810899,110.73000001,200.59,200.5,0.65]
[1759066811099,110.73000001,200.59,200.49,0.65]
[1759066811100,0.68,200.58,200.49,0.65]
[1759066811827,26.0,200.54,200.46,0.65]
[1759066812206,0.68,200.53,200.46,0.65]
[1759066812721,39.46,200.53,200.46,0.65]
[1759066812923,0.68,200.53,200.45,0.65]
[1759066813227,26.68,200.54,200.45,0.65]
[1759066813601,65.48,200.54,200.45,0.65]
[1759066813802,26.68,200.54,200.45,0.65]
[1759066814010,65.48,200.54,200.45,0.65]
[1759066814603,26.68,200.54,200.45,0.65]
[1759066814805,65.48,200.54,200.45,0.65]
[1759066815223,65.48,200.54,200.46,15.00862996]
[1759066815407,64.8,200.54,200.46,15.00862996]
[1759066815614,26.0,200.54,200.47,0.65]
[1759066816030,26.68,200.54,200.47,0.65]
[1759066817207,26.68,200.54,200.46,15.00862996]
[1759066817404,0.68,200.53,200.46,15.65862996]
[1759066817607,0.68,200.52,200.46,15.65862996]
[1759066818618,0.68,200.52,200.46,20.64711603]
[1759066818927,0.68,200.52,200.46,15.65862996]
[1759066820029,0.68,200.51,200.46,0.65]
[1759066820222,0.68,200.51,200.47,0.65]
[1759066820422,0.68,200.51,200.45,15.65938087]
[1759066820614,124.21000001,200.53,200.45,15.65938087]
[1759066820810,123.49000001,200.53,200.46,0.72]
[1759066821027,0.72,200.52,200.46,0.72]
[1759066821210,0.72,200.52,200.46,15.72938087]
[1759066822631,0.72,200.52,200.46,15.00938087]
[1759066822835,0.72,200.52,200.47,0.72]
[1759066823336,0.72,200.51,200.45,0.72]
[1759066823631,124.21000001,200.53,200.45,15.72938087]
[1759066823820,124.21000001,200.53,200.46,0.72]
[1759066824634,85.45000001,200.53,200.46,0.72]
[1759066824939,124.19000001,200.53,200.46,0.72]
[1759066825233,124.19000001,200.53,200.46,15.72938087]
[1759066825433,124.19000001,200.53,200.47,0.72]
[1759066826547,84.73000001,200.53,200.47,0.72]
[1759066826721,84.73000001,200.53,200.48,15.00787914]
[1759066826927,85.45000001,200.53,200.48,15.72787914]
[1759066827334,85.45000001,200.53,200.49,0.72]
[1759066828520,84.73000001,200.53,200.49,0.72]
[1759066829032,85.45000001,200.53,200.49,0.72]
[1759066829540,0.72,200.53,200.49,0.72]
[1759066831842,0.72,200.53,200.48,15.00787914]
[1759066832039,26.0,200.54,200.48,15.72787914]
[1759066832218,0.72,200.52,200.48,15.72787914]
[1759066832733,36.4737665,200.6,200.49,0.72]
[1759066832734,26.0,200.58,200.49,0.72]
[1759066832931,84.73000001,200.57,200.49,15.72712838]
[1759066833140,84.73000001,200.57,200.5,14.31559401]
[1759066833434,84.73000001,200.57,200.51,0.72]
[1759066833945,0.72,200.56,200.51,0.72]
[1759066834121,84.73000001,200.57,200.48,13.59559401]
[1759066834422,85.45000001,200.57,200.52,0.72]
[1759066834616,84.73000001,200.57,200.52,0.72]
[1759066834821,0.72,200.56,200.52,0.72]
[1759066836139,84.73000001,200.57,200.52,0.72]
[1759066836345,85.45000001,200.57,200.52,0.72]
[1759066837220,0.72,200.56,200.52,0.72]
[1759066837717,0.72,200.55,200.49,0.72]
[1759066837922,26.0,200.54,200.47,14.31559401]
[1759066838227,26.72,200.54,200.47,29.32347315]
[1759066838431,85.45000001,200.57,200.48,0.72]
[1759066838639,124.19000001,200.57,200.49,13.59559401]
[1759066838844,124.19000001,200.57,200.5,0.72]
[1759066841446,84.73000001,200.56,200.5,0.72]
[1759066842353,85.45000001,200.56,200.49,28.60197172]
[1759066842652,0.72,200.55,200.49,28.60197172]
[1759066842830,0.72,200.55,200.49,29.32197172]
[1759066843252,0.72,200.55,200.49,0.72]
[1759066846555,0.72,200.55,200.47,14.31559401]
[1759066846771,0.72,200.54,200.47,0.72]
[1759066846937,0.72,200.54,200.47,15.00862996]
[1759066847137,0.72,200.53,200.48,0.72]
[1759066847360,84.73000001,200.56,200.49,13.59559401]
[1759066847564,84.73000001,200.56,200.5,0.72]
[1759066848144,84.73000001,200.56,200.51,15.00562711]
[1759066848346,84.73000001,200.56,200.52,0.72]
[1759066849177,84.73000001,200.56,200.53,0.72]
[1759066852650,0.66,200.55,200.51,15.00562711]
[1759066852847,0.66,200.55,200.49,13.59559401]
[1759066853053,84.73000001,200.56,200.51,0.72]
[1759066853346,84.73000001,200.56,200.52,0.72]
[1759066853865,42.7640782,200.55,200.49,15.00637771]
[1759066854173,0.66,200.54,200.48,0.72]
[1759066854546,0.66,200.54,200.49,15.00637771]
[1759066854748,0.66,200.54,200.49,15.72637771]
[1759066855477,84.73000001,200.56,200.5,14.31559401]
[1759066855664,84.73000001,200.56,200.51,0.72]
[1759066856047,0.66,200.55,200.5,14.31559401]
[1759066856250,0.66,200.55,200.5,0.72]
[1759066856475,0.66,200.55,200.5,15.72637771]
[1759066857374,0.66,200.55,200.5,15.00637771]
[1759066857568,84.73000001,200.56,200.51,0.72]
[1759066857942,85.39000001,200.56,200.52,0.72]
[1759066860447,85.39000001,200.56,200.5,15.72637771]
[1759066860647,85.39000001,200.56,200.51,0.72]
[1759066861677,0.66,200.55,200.5,15.00637771]
[1759066861890,0.66,200.54,200.5,0.72]
[1759066862785,0.66,200.53,200.49,15.00712838]
[1759066862950,39.4,200.52,200.45,0.72]
[1759066863281,38.74,200.51,200.45,0.72]
[1759066863574,39.4,200.52,200.45,0.72]
[1759066865606,26.66,200.52,200.45,0.72]
[1759066865748,26.66,200.52,200.45,15.73013184]
[1759066865953,65.4,200.52,200.46,0.72]
[1759066866373,65.4,200.52,200.43,0.72]
[1759066866569,26.0,200.49,200.43,0.72]
[1759066866773,26.0,200.49,200.43,15.73088289]
[1759066866954,0.66,200.48,200.43,15.73088289]
[1759066867270,0.66,200.48,200.43,15.01088289]
[1759066867475,0.66,200.48,200.44,0.72]
[1759066867672,0.66,200.48,200.43,15.73088289]
[1759066867869,26.0,200.49,200.44,0.72]
[1759066868172,0.66,200.48,200.44,0.72]
[1759066869148,0.66,200.48,200.43,15.01088289]
[1759066869359,0.66,200.48,200.43,0.72]
[1759066869659,26.0,200.49,200.44,0.72]
[1759066869864,26.0,200.49,200.45,0.72]
[1759066870181,84.73000001,200.51,200.45,0.72]
[1759066870553,84.73000001,200.51,200.46,13.59559401]
[1759066870752,84.73000001,200.51,200.47,0.66]
[1759066872654,84.73000001,200.51,200.48,0.66]
[1759066873781,0.68,200.5,200.46,13.59559401]
[1759066873957,0.68,200.5,200.46,14.25559401]
[1759066874277,84.73000001,200.51,200.46,14.25559401]
[1759066874473,85.41000001,200.51,200.46,14.25559401]
[1759066874975,85.41000001,200.51,200.47,0.66]
[1759066876068,84.73000001,200.51,200.45,13.59559401]
[1759066876273,84.73000001,200.51,200.49,13.59559401]
[1759066876579,39.42,200.56,200.5,0.66]
[1759066876761,42.78362863,200.56,200.5,0.66]
[1759066877673,39.42,200.56,200.49,13.59559401]
[1759066877872,39.42,200.56,200.46,26.0]
[1759066877873,4.04362516,200.55,200.46,26.0]
[1759066878174,88.77362517,200.54,200.45,13.59559401]
[1759066878372,124.15000001,200.53,200.45,14.25559401]
[1759066878555,0.68,200.52,200.45,14.25559401]
[1759066878761,84.73000001,200.53,200.47,13.59559401]
[1759066878966,84.73000001,200.53,200.48,0.66]
[1759066879674,84.73000001,200.53,200.49,13.59559401]
[1759066879978,39.42,200.57,200.51,13.59559401]
[1759066880178,39.42,200.57,200.51,14.25559401]
[1759066880368,0.68,200.57,200.51,14.25559401]
[1759066882174,0.68,200.57,200.52,0.72]
[1759066882357,84.73000001,200.58,200.53,0.72]
[1759066882554,85.44000001,200.58,200.53,0.72]
[1759066884673,0.71,200.57,200.51,13.59559401]
[1759066884866,85.44000001,200.58,200.52,0.72]
[1759066885256,124.18000001,200.58,200.52,0.72]
[1759066885456,124.18000001,200.58,200.5,14.31559401]
[1759066885666,0.71,200.57,200.5,14.31559401]
[1759066885867,0.71,200.57,200.5,19.30301863]